bitfinex/quotes_SOLUSD_20250622
["timestamp","ask_amount","ask_price","bid_price","bid_amount"]
[1750583145420,18.64964886,135.36,135.32,51.86461719]
[1750583145628,0.42461604,135.35,135.32,51.86461719]
[1750583145829,0.42461604,135.35,135.32,7.38989062]
[1750583146014,0.42461604,135.35,135.29,25.86903322]
[1750583146210,0.42461604,135.35,135.3,26.0]
[1750583148143,0.42461604,135.35,135.31,7.39043677]
[1750583148316,18.64964886,135.33,135.31,7.39043677]
[1750583148510,0.42461604,135.32,135.31,7.39043677]
[1750583148919,6.76611604,135.32,135.26,25.87478376]
[1750583149139,18.64964886,135.31,135.26,7.39316871]
[1750583149344,0.42461604,135.3,135.26,7.39316871]
[1750583150111,0.42461604,135.3,135.25,25.87800369]
[1750583150526,0.42461604,135.3,135.28,26.0]
[1750583151647,0.42461604,135.3,135.25,25.87800369]
[1750583151847,19.0742649,135.3,135.26,26.0]
[1750583152219,19.0742649,135.3,135.27,7.39262216]
[1750583152640,0.42461604,135.3,135.27,7.39262216]
[1750583153844,19.0742649,135.3,135.25,7.39371534]
[1750583154135,165.9742649,135.3,135.25,7.39371534]
[1750583154342,165.54964886,135.3,135.25,7.39371534]
[1750583154543,0.42461604,135.29,135.25,7.39371534]
[1750583154740,30.88461604,135.29,135.25,7.39371534]
[1750583156548,30.88461604,135.29,135.25,25.87800369]
[1750583161548,18.64964886,135.28,135.25,25.87800369]
[1750583161723,0.42461604,135.27,135.25,25.87800369]
[1750583162047,0.42461604,135.27,135.19,14.79564254]
[1750583162048,0.42461604,135.27,135.23,7.39480884]
[1750583162554,6.4144,135.26,135.23,7.39480884]
[1750583162730,0.42461604,135.25,135.23,7.39480884]
[1750583162922,19.0742649,135.25,135.23,7.39480884]
[1750583163321,25.7142649,135.25,135.23,7.39480884]
[1750583163524,25.7142649,135.25,135.21,7.39590266]
[1750583163727,25.7142649,135.25,135.21,25.88565933]
[1750583170059,6.83901604,135.26,135.21,25.88565933]
[1750583170259,6.64,135.28,135.24,26.0]
[1750583170467,0.42461604,135.27,135.24,26.0]
[1750583172243,0.42461604,135.27,135.25,7.39371534]
[1750583172652,7.06461604,135.28,135.25,25.87800369]
[1750583176774,7.06461604,135.28,135.25,7.39371534]
[1750583176968,18.64964886,135.26,135.23,7.39480884]
[1750583177276,0.42461604,135.25,135.23,7.39480884]
[1750583178764,25.03674886,135.24,135.17,36.98864444]
[1750583178939,0.42461604,135.23,135.17,36.98864444]
[1750583179139,6.64,135.22,135.15,25.8971513]
[1750583179351,0.42461604,135.21,135.15,25.8971513]
[1750583179557,0.42461604,135.21,135.16,26.0]
[1750583180360,6.64,135.22,135.18,26.0]
[1750583181362,6.64,135.22,135.19,25.88948885]
[1750583183252,0.42461604,135.21,135.2,33.3964497]
[1750583183670,19.0742649,135.21,135.18,26.0]
[1750583183971,19.0742649,135.21,135.18,33.39754401]
[1750583184161,49.5542649,135.21,135.18,33.39754401]
[1750583184359,49.5542649,135.21,135.18,7.39754401]
[1750583184876,49.5542649,135.21,135.18,33.39754401]
[1750583186359,30.90461604,135.21,135.18,33.39754401]
[1750583186572,30.90461604,135.21,135.18,51.89140404]
[1750583189474,0.42461604,135.21,135.18,18.49386003]
[1750583191471,0.42461604,135.21,135.16,26.0]
[1750583192985,0.42461604,135.21,135.17,51.89331952]
[1750583194454,153.2871,135.24,135.17,88.88377598]
[1750583194660,0.42461604,135.23,135.17,88.88377598]
[1750583199885,19.0742649,135.23,135.17,88.88377598]
[1750583206664,19.0742649,135.23,135.17,51.89331952]
[1750583207478,18.64964886,135.21,135.17,33.39809129]
[1750583207672,6.3745,135.19,135.17,33.39809129]
[1750583207875,0.42461604,135.18,135.17,33.39809129]
[1750583208461,172.6142649,135.18,135.12,25.90284023]
[1750583208663,172.18964886,135.18,135.12,25.90284023]
[1750583208876,19.0742649,135.17,135.13,26.0]
[1750583209078,19.0742649,135.17,135.12,25.90284023]
[1750583209584,49.5542649,135.17,135.12,25.90284023]
[1750583210576,30.90461604,135.17,135.12,25.90284023]
[1750583210766,0.42461604,135.17,135.12,25.90284023]
[1750583211500,0.42461604,135.17,135.12,62.90698469]
[1750583211790,153.54,135.18,135.15,26.0]
[1750583212076,6.64,135.18,135.15,26.0]
[1750583212459,6.64,135.18,135.16,7.39863865]
[1750583218685,7.06461604,135.18,135.16,7.39863865]
[1750583219169,153.96461604,135.18,135.16,7.39863865]
[1750583219495,18.64964886,135.17,135.16,7.39863865]
[1750583219694,19.0742649,135.17,135.16,7.39863865]
[1750583220271,19.0742649,135.17,135.14,7.3997336]
[1750583221596,18.64964886,135.15,135.14,7.3997336]
[1750583221799,19.0742649,135.15,135.14,7.3997336]
[1750583222597,19.0742649,135.15,135.11,25.90468523]
[1750583224987,6.0026,135.14,135.11,25.90468523]
[1750583225199,0.42461604,135.13,135.11,25.90468523]
[1750583225403,19.0742649,135.13,135.11,7.40137665]
[1750583226102,165.54964886,135.12,135.11,7.40137665]
[1750583226300,172.16964886,135.12,135.11,7.40137665]
[1750583226495,153.52,135.12,135.09,25.90859624]
[1750583227701,6.62,135.12,135.09,29.58164669]
[1750583229685,6.62,135.12,135.09,25.90859624]
[1750583230196,0.42461604,135.11,135.09,25.90859624]
[1750583234722,19.0742649,135.11,135.09,7.40247242]
[1750583234887,20.16084886,135.1,135.09,7.40247242]
[1750583235092,18.64964886,135.09,135.06,7.40411668]
[1750583235294,147.32461604,135.08,135.06,7.40411668]
[1750583235496,146.9,135.08,135.06,7.40411668]
[1750583235805,0.42461604,135.07,135.06,7.40411668]
[1750583236113,19.0742649,135.07,135.06,7.40411668]
[1750583237209,177.38,135.08,135.04,18.51298883]
[1750583237394,0.42461604,135.07,135.04,18.51298883]
[1750583239519,19.0742649,135.07,135.04,18.51298883]
[1750583240516,6.3027,135.04,134.99,37.03857172]
[1750583240828,19.0742649,135.03,134.97,37.04516428]
[1750583241597,19.0742649,135.03,134.98,26.0]
[1750583242013,0.42461604,135.03,134.98,26.0]
[1750583243423,8.29361604,135.04,135.01,7.40685875]
[1750583243608,6.64,135.06,135.01,44.4411525]
[1750583243812,6.64,135.06,135.04,26.0]
[1750583244724,6.64,135.06,135.05,7.40466493]
[1750583246519,8.81130707,135.07,135.05,7.40466493]
[1750583255923,6.62,135.1,135.06,26.0]
[1750583256123,19.0742649,135.09,135.06,26.0]
[1750583256324,0.42461604,135.09,135.06,26.0]
[1750583256537,6.62,135.1,135.06,26.0]
[1750583257734,6.62,135.1,135.07,25.91248982]
[1750583261336,6.62,135.1,135.09,26.0]
[1750583262017,6.62,135.1,135.09,33.40247242]
[1750583266543,6.62,135.1,135.09,7.40247242]
[1750583267310,25.26964886,135.1,135.09,7.40247242]
[1750583267914,24.88764886,135.09,135.03,74.05761682]
[1750583268113,0.42461604,135.08,135.04,26.0]
[1750583268316,0.42461604,135.08,135.05,18.51166234]
[1750583268543,0.42461604,135.08,135.05,25.91632727]
[1750583269614,0.42461604,135.08,135.05,7.40466493]
[1750583270218,18.64964886,135.06,135.03,7.40576168]
[1750583270444,0.42461604,135.05,135.01,63.03429375]
[1750583271627,0.42461604,135.05,135.01,26.0]
[1750583271834,18.64964886,135.03,135.01,26.0]
[1750583272034,0.42461604,135.02,135.01,26.0]
[1750583272370,0.42461604,135.02,134.99,25.9278465]
[1750583278241,1.5678,135.01,134.99,7.40795614]
[1750583278456,19.0742649,135.0,134.99,7.40795614]
[1750583278833,19.0742649,135.0,134.97,7.40905386]
[1750583280030,19.0742649,135.0,134.96,25.93242793]
[1750583280238,19.0742649,135.0,134.96,51.93242793]
[1750583282251,19.0742649,135.0,134.99,26.0]
[1750583282954,18.64964886,134.98,134.96,7.40960284]
[1750583283157,0.42461604,134.97,134.96,7.40960284]
[1750583283344,0.42461604,134.97,134.96,33.40960284]
[1750583285166,7.04461604,134.98,134.96,7.40960284]
[1750583286480,25.6942649,134.98,134.96,7.40960284]
[1750583286771,25.6942649,134.98,134.97,26.0]
[1750583286967,25.6942649,134.98,134.97,7.40905386]
[1750583287944,18.64964886,134.97,134.96,7.40937768]
[1750583289045,18.64964886,134.97,134.95,7.4101519]
[1750583289249,0.42461604,134.96,134.95,7.4101519]
[1750583290051,0.42461604,134.97,134.95,25.93553167]
[1750583290469,7.04461604,134.98,134.95,25.93553167]
[1750583291040,6.62,134.98,134.97,26.0]
[1750583291451,7.04461604,134.98,134.97,26.0]
[1750583291679,7.04461604,134.98,134.95,51.93553167]
[1750583292790,18.64964886,134.97,134.95,7.4101519]
[1750583292960,0.42461604,134.96,134.95,7.4101519]
[1750583293460,0.42461604,134.96,134.94,7.41070105]
[1750583293767,18.64964886,134.95,134.94,7.41070105]
[1750583295258,18.64964886,134.95,134.92,25.93996995]
[1750583295480,0.42461604,134.94,134.92,25.93996995]
[1750583297163,0.42461604,134.94,134.92,7.41179958]
[1750583299496,0.42461604,134.94,134.9,18.53210136]
[1750583299497,0.42461604,134.94,134.9,25.9449998]
[1750583299662,146.9,134.93,134.9,25.9449998]
[1750583299985,0.42461604,134.92,134.9,25.9449998]
[1750583304864,0.42461604,134.92,134.9,7.41289844]
[1750583304865,19.0742649,134.92,134.9,7.41289844]
[1750583305073,165.54964886,134.91,134.9,7.41289844]
[1750583305988,18.64964886,134.9,134.89,15.74655028]
[1750583306164,19.0742649,134.9,134.89,8.33333333]
[1750583306585,19.0742649,134.9,134.89,15.74678132]
[1750583306889,49.5742649,134.9,134.89,8.33333333]
[1750583307894,64.73046334,134.9,134.89,1.66673333]
[1750583308085,18.64964886,134.88,134.8,25.96438997]
[1750583308276,18.64964886,134.86,134.8,25.96438997]
[1750583308478,18.64964886,134.84,134.8,7.41839762]
[1750583308675,18.64964886,134.82,134.8,7.41839762]
[1750583308988,0.42461604,134.81,134.8,7.41839762]
[1750583309869,0.42461604,134.81,134.79,25.96625934]
[1750583310179,0.42461604,134.81,134.79,7.41894799]
[1750583310570,18.64964886,134.8,134.79,7.41894799]
[1750583310872,18.64964886,134.8,134.78,7.41936677]
[1750583311072,49.5742649,134.79,134.78,7.41936677]
[1750583311270,18.64964886,134.78,134.73,18.55430435]
[1750583311471,0.42461604,134.77,134.73,18.55430435]
[1750583311683,0.42461604,134.77,134.73,44.55430435]
[1750583311890,0.42461604,134.77,134.73,18.55430435]
[1750583312298,0.42461604,134.78,134.76,26.0]
[1750583312671,19.0742649,134.78,134.73,18.55430435]
[1750583313109,18.64964886,134.76,134.72,7.42280285]
[1750583313283,30.92461604,134.75,134.72,7.42280285]
[1750583313496,30.92461604,134.75,134.72,33.42280285]
[1750583313798,18.64964886,134.74,134.72,7.42280285]
[1750583313982,25.6942649,134.73,134.72,7.42280285]
[1750583314167,56.1942649,134.73,134.72,7.42280285]
[1750583314591,18.64964886,134.72,134.71,1.6301458]
[1750583315076,26.54094886,134.72,134.71,1.6301458]
[1750583315398,57.06094886,134.72,134.71,1.6301458]
[1750583316396,24.92884886,134.72,134.71,1.6301458]
[1750583316696,6.62,134.72,134.71,9.05349967]
[1750583316869,6.62,134.72,134.71,27.61188434]
[1750583318005,18.64964886,134.77,134.71,53.61188434]
[1750583318176,19.0742649,134.77,134.71,53.61188434]
[1750583318383,19.0742649,134.77,134.74,26.0]
[1750583318681,19.0742649,134.77,134.71,27.61188434]
[1750583318682,19.0742649,134.77,134.71,53.61188434]
[1750583321088,49.6542649,134.77,134.71,90.72865369]
[1750583321298,49.6542649,134.77,134.74,26.0]
[1750583321606,19.0742649,134.77,134.74,26.0]
[1750583321991,6.62,134.78,134.75,7.42115027]
[1750583321992,7.04461604,134.78,134.75,7.42115027]
[1750583322504,7.04461604,134.78,134.75,25.97402596]
[1750583324102,18.64964886,134.77,134.75,25.97402596]
[1750583324404,0.42461604,134.76,134.75,7.42115027]
[1750583324605,7.04461604,134.78,134.75,42.13761896]
[1750583324784,18.64964886,134.77,134.74,7.42150857]
[1750583324987,31.04461604,134.76,134.72,7.42280285]
[1750583325299,31.04461604,134.76,134.73,16.163593]
[1750583325495,31.04461604,134.76,134.74,16.163593]
[1750583326111,49.6942649,134.76,134.75,23.58474327]
[1750583327084,30.62,134.76,134.75,23.58474327]
[1750583327285,7.04461604,134.78,134.75,42.13761896]
[1750583327286,37.70461604,134.78,134.75,42.13761896]
[1750583327486,56.3542649,134.78,134.77,16.163593]
[1750583327685,6.62,134.78,134.77,16.163593]
[1750583328076,6.62,134.78,134.77,23.58364197]
[1750583328416,0.42461604,134.82,134.77,105.23400926]
[1750583328575,0.42461604,134.82,134.81,16.163593]
[1750583328900,19.0742649,134.82,134.81,16.163593]
[1750583329100,49.7342649,134.82,134.81,16.163593]
[1750583330109,49.7342649,134.82,134.81,23.58144034]
[1750583331683,49.7342649,134.82,134.81,16.163593]
[1750583331906,49.7342649,134.82,134.8,23.5818186]
[1750583332788,49.7342649,134.82,134.78,7.41949844]
[1750583332993,49.7342649,134.82,134.75,7.42115027]
[1750583332994,18.64964886,134.8,134.75,7.42115027]
[1750583333215,31.06461604,134.79,134.77,16.163593]
[1750583334093,31.06461604,134.79,134.76,16.163593]
[1750583336613,31.06461604,134.79,134.76,23.58368492]
[1750583336811,18.64964886,134.78,134.75,23.58452334]
[1750583337117,37.68461604,134.77,134.74,23.58519248]
[1750583338913,37.68461604,134.77,134.72,25.9797269]
[1750583339120,37.68461604,134.77,134.74,16.163593]
[1750583339327,37.68461604,134.77,134.75,16.163593]
[1750583339500,18.64964886,134.76,134.75,16.163593]
[1750583340521,37.68461604,134.77,134.75,16.163593]
[1750583340820,56.3342649,134.77,134.76,16.163593]
[1750583341124,56.3342649,134.77,134.76,7.42059958]
[1750583342328,56.3342649,134.77,134.76,23.58419258]
[1750583342510,37.68461604,134.77,134.76,23.58419258]
[1750583343622,7.04461604,134.77,134.76,23.58419258]
[1750583344232,6.62,134.77,134.76,23.58419258]
[1750583344926,7.04461604,134.77,134.76,23.58419258]
[1750583345107,37.68461604,134.77,134.76,23.58419258]
[1750583347510,56.3342649,134.77,134.76,16.163593]
[1750583347710,18.64964886,134.76,134.75,7.42093272]
[1750583347939,18.64964886,134.76,134.75,23.58452572]
[1750583349744,165.54964886,134.76,134.75,23.58452572]
[1750583351460,146.9,134.76,134.75,23.58452572]
[1750583354634,6.62,134.77,134.75,23.58452572]
[1750583354841,6.62,134.77,134.76,10.60397453]
[1750583355555,6.62,134.77,134.76,18.02457411]
[1750583355767,7.8298,134.83,134.76,36.57607307]
[1750583355934,56.3942649,134.82,134.76,25.97209854]
[1750583356135,18.64964886,134.77,134.72,7.42280285]
[1750583356336,18.64964886,134.75,134.73,10.60397453]
[1750583356547,31.10461604,134.74,134.72,7.42280285]
[1750583356747,31.10461604,134.74,134.73,10.60397453]
[1750583357036,49.7542649,134.74,134.73,10.60397453]
[1750583357533,18.64964886,134.73,134.72,10.60397453]
[1750583357755,18.64964886,134.73,134.72,7.42280285]
[1750583358658,25.24994886,134.73,134.71,9.05327692]
[1750583358870,31.10461604,134.72,134.71,9.05327692]
[1750583359539,31.10461604,134.72,134.71,1.6301458]
[1750583359749,31.10461604,134.72,134.71,9.05349967]
[1750583360435,49.7542649,134.72,134.71,1.6301458]
[1750583361033,49.7542649,134.72,134.71,9.05349967]
[1750583361359,19.0742649,134.72,134.71,9.05349967]
[1750583361658,56.4542649,134.72,134.71,9.05349967]
[1750583363034,19.0742649,134.72,134.71,9.05349967]
[1750583363254,56.4542649,134.72,134.71,9.05349967]
[1750583363658,56.4542649,134.72,134.71,1.6301458]
[1750583364562,56.4542649,134.72,134.71,9.05349967]
[1750583366252,56.4542649,134.72,134.71,1.6301458]
[1750583366750,56.4542649,134.72,134.71,9.05349967]
[1750583367644,56.4542649,134.72,134.71,1.6301458]
[1750583367874,72.63304667,134.72,134.71,1.6301458]
[1750583368044,74.22624667,134.72,134.71,1.6301458]
[1750583369653,81.64904952,134.72,134.71,1.6301458]
[1750583370842,65.47026775,134.72,134.71,1.6301458]
[1750583371049,81.64904952,134.72,134.71,1.6301458]
[1750583371688,107.64904952,134.72,134.71,1.6301458]
[1750583372049,100.22624667,134.72,134.71,1.6301458]
[1750583373058,84.0474649,134.72,134.71,1.6301458]
[1750583373262,20.6674649,134.72,134.71,1.6301458]
[1750583373569,56.4342649,134.72,134.71,25.23228144]
[1750583374877,56.4342649,134.72,134.71,9.05349967]
[1750583375083,56.4342649,134.72,134.71,1.6301458]
[1750583375769,56.4342649,134.72,134.71,9.05349967]
[1750583375968,56.4342649,134.72,134.71,25.23228144]
[1750583380880,56.4342649,134.72,134.71,19.6704021]
[1750583382381,7.12461604,134.72,134.71,19.6704021]
[1750583382561,37.32,134.72,134.71,19.6704021]
[1750583383156,37.32,134.72,134.71,9.05349967]
[1750583383356,55.96964886,134.72,134.71,9.05349967]
[1750583383571,55.96964886,134.72,134.71,19.6704021]
[1750583384079,55.96964886,134.72,134.71,9.05349967]
[1750583384872,55.96964886,134.72,134.71,1.6301458]
[1750583385668,55.96964886,134.72,134.71,9.05349967]
[1750583386571,55.96964886,134.72,134.71,19.6704021]
[1750583387370,6.7,134.72,134.71,19.6704021]
[1750583387567,37.3,134.72,134.71,19.6704021]
[1750583388076,6.7,134.72,134.71,19.6704021]
[1750583397901,56.3342649,134.72,134.71,19.6704021]
[1750583400303,56.3342649,134.72,134.71,9.05349967]
[1750583400603,56.3342649,134.72,134.71,19.6704021]
[1750583403381,6.7,134.72,134.71,19.6704021]
[1750583403889,37.26,134.72,134.71,9.05349967]
[1750583404085,55.90964886,134.72,134.71,9.05349967]
[1750583404693,55.90964886,134.72,134.71,1.6301458]
[1750583404913,202.80964886,134.72,134.71,1.6301458]
[1750583405084,202.80964886,134.72,134.71,9.05349967]
[1750583406485,55.90964886,134.72,134.71,1.6301458]
[1750583406685,56.3342649,134.72,134.71,1.6301458]
[1750583407812,72.50172519,134.72,134.71,1.6301458]
[1750583408503,79.92452804,134.72,134.71,1.6301458]
[1750583410817,72.50172519,134.72,134.71,1.6301458]
[1750583411032,79.92452804,134.72,134.71,1.6301458]
[1750583413021,29.26655129,134.67,134.63,18.04466741]
[1750583413208,18.64964886,134.65,134.63,18.04466741]
[1750583413535,31.00461604,134.64,134.63,18.04466741]
[1750583413821,49.6542649,134.64,134.63,7.42776498]
[1750583414396,49.6542649,134.64,134.63,18.04466741]
[1750583414793,30.58,134.64,134.63,18.04466741]
[1750583415520,30.58,134.65,134.63,36.61407987]
[1750583415703,182.4898542,134.66,134.64,10.61690243]
[1750583415902,182.4898542,134.66,134.65,10.61690243]
[1750583416111,151.9098542,134.66,134.65,10.61690243]
[1750583416918,151.9098542,134.66,134.65,18.04356414]
[1750583418412,182.4898542,134.66,134.65,18.04356414]
[1750583421923,182.4898542,134.66,134.65,7.42666171]
[1750583422502,182.4898542,134.66,134.65,18.04356414]
[1750583424823,201.13950306,134.66,134.65,7.42666171]
[1750583427934,201.13950306,134.66,134.65,18.04356414]
[1750583428320,182.4898542,134.66,134.65,18.04356414]
[1750583429213,182.4898542,134.66,134.65,7.42666171]
[1750583429449,182.4898542,134.66,134.65,18.04356414]
[1750583432115,10.61690243,134.7,134.65,89.12662456]
[1750583432116,49.22964886,134.69,134.65,89.12662456]
[1750583432345,145.69447024,134.68,134.65,7.42666171]
[1750583432543,18.64964886,134.66,134.65,18.04356414]
[1750583432840,19.0742649,134.66,134.65,18.04356414]
[1750583433029,145.2698542,134.68,134.67,26.0]
[1750583433231,6.64,134.7,134.67,36.61690243]
[1750583433425,6.64,134.7,134.69,10.61690243]
[1750583435130,6.64,134.7,134.69,18.04135858]
[1750583437844,37.22,134.7,134.69,18.04135858]
[1750583440522,6.64,134.7,134.69,18.04135858]
[1750583445440,170.55950306,134.75,134.71,26.0]
[1750583445647,201.11950306,134.75,134.74,10.61690243]
[1750583445848,170.55950306,134.75,134.74,10.61690243]
[1750583446145,170.55950306,134.75,134.74,18.03860348]
[1750583447438,151.9098542,134.75,134.74,18.03860348]
[1750583448361,6.64,134.75,134.74,54.65550591]
[1750583450854,48.14,134.81,134.77,26.0]
[1750583451030,54.78,134.81,134.8,10.61690243]
[1750583452143,54.78,134.81,134.8,18.03530005]
[1750583452542,54.78,134.81,134.8,7.41839762]
[1750583452751,73.42964886,134.81,134.8,18.03530005]
[1750583454051,103.98964886,134.81,134.8,18.03530005]
[1750583455352,104.4142649,134.81,134.79,18.03563118]
[1750583455660,104.4142649,134.81,134.79,7.41872875]
[1750583456965,104.4142649,134.81,134.79,18.03563118]
[1750583458643,104.4142649,134.81,134.8,10.61690243]
[1750583459548,7.06461604,134.81,134.8,10.61690243]
[1750583459737,6.64,134.81,134.8,10.61690243]
[1750583460137,6.64,134.86,134.8,21.23380486]
[1750583460344,6.64,134.86,134.85,10.61690243]
[1750583460562,37.18,134.86,134.85,18.03254944]
[1750583460776,6.64,134.86,134.85,18.03254944]
[1750583461944,6.64,134.86,134.79,25.96631797]
[1750583462148,18.64964886,134.84,134.79,89.06105793]
[1750583462353,18.64964886,134.84,134.83,10.61690243]
[1750583462944,18.64964886,134.84,134.83,18.03364944]
[1750583463264,6.64,134.86,134.83,36.57551697]
[1750583463451,6.64,134.86,134.85,10.61690243]
[1750583463969,6.64,134.86,134.83,25.95861454]
[1750583463970,18.64964886,134.85,134.83,25.95861454]
[1750583464159,19.0742649,134.85,134.84,10.61690243]
[1750583464560,18.64964886,134.84,134.83,7.41674701]
[1750583464763,18.64964886,134.84,134.83,18.03364944]
[1750583464959,18.64964886,134.84,134.81,10.61690243]
[1750583465163,18.64964886,134.82,134.81,10.61690243]
[1750583465678,19.0742649,134.82,134.81,10.61690243]
[1750583466350,19.0742649,134.82,134.81,18.03474977]
[1750583466660,19.0742649,134.82,134.81,10.61690243]
[1750583466854,19.0742649,134.82,134.8,18.03509977]
[1750583467059,194.45950306,134.81,134.8,18.03509977]
[1750583467646,194.45950306,134.81,134.8,7.41819734]
[1750583467847,194.45950306,134.81,134.8,18.03509977]
[1750583476359,18.64964886,134.79,134.78,18.03640087]
[1750583476563,49.6142649,134.79,134.78,7.41949844]
[1750583476869,49.6142649,134.79,134.78,18.03640087]
[1750583480154,30.96461604,134.79,134.78,18.03640087]
[1750583480354,6.62,134.8,134.78,18.03640087]
[1750583480575,6.62,134.8,134.79,10.61690243]
[1750583481063,6.62,134.8,134.79,18.03585042]
[1750583491878,145.2698542,134.83,134.79,47.20012283]
[1750583492077,145.2698542,134.83,134.82,47.23380486]
[1750583493401,145.2698542,134.83,134.82,54.65110199]
[1750583494792,145.2698542,134.83,134.82,44.03419956]
[1750583495272,145.2698542,134.83,134.82,18.03419956]
[1750583495687,175.7898542,134.83,134.82,18.03419956]
[1750583505398,175.7898542,134.83,134.79,18.54736998]
[1750583505979,145.69447024,134.82,134.81,10.61690243]
[1750583506179,145.2698542,134.82,134.81,10.61690243]
[1750583507488,145.2698542,134.82,134.81,18.03474977]
[1750583508101,37.12,134.85,134.81,36.57936812]
[1750583508407,6.62,134.85,134.84,10.61690243]
[1750583508593,7.04461604,134.85,134.81,25.96246569]
[1750583508780,7.04461604,134.85,134.84,10.61690243]
[1750583508983,7.04461604,134.85,134.83,10.61690243]
[1750583509201,30.5,134.84,134.83,10.61690243]
[1750583509817,30.5,134.84,134.83,18.03364944]
[1750583511110,30.5,134.84,134.83,10.61690243]
[1750583511293,30.5,134.84,134.82,10.61690243]
[1750583511487,0.42461604,134.83,134.82,10.61690243]
[1750583514095,0.42461604,134.83,134.81,18.03455957]
[1750583514294,177.4,134.82,134.81,18.03455957]
[1750583515603,146.9,134.81,134.8,10.61690243]
[1750583515919,146.9,134.8,134.79,10.61690243]
[1750583516127,177.4,134.8,134.78,18.03616702]
[1750583516324,0.42461604,134.79,134.78,18.03616702]
[1750583516810,0.42461604,134.79,134.78,10.61690243]
[1750583517002,0.42461604,134.79,134.77,18.03679828]
[1750583517206,0.42461604,134.79,134.78,10.61690243]
[1750583517635,0.42461604,134.79,134.77,10.61690243]
[1750583517924,30.5,134.78,134.77,10.61690243]
[1750583520810,146.9,134.77,134.75,10.61690243]
[1750583521016,177.82461604,134.76,134.74,10.61690243]
[1750583521201,177.4,134.76,134.74,10.61690243]
[1750583521406,0.42461604,134.75,134.74,10.61690243]
[1750583521919,177.4,134.76,134.74,10.61690243]
[1750583522103,177.4,134.76,134.75,10.61690243]
[1750583522621,177.4,134.76,134.74,10.61690243]
[1750583522816,0.42461604,134.75,134.74,10.61690243]
[1750583523016,177.4,134.76,134.74,10.61690243]
[1750583523204,0.42461604,134.75,134.74,10.61690243]
[1750583523613,177.4,134.76,134.74,18.03860348]
[1750583523814,177.4,134.76,134.75,10.61690243]
[1750583525136,177.4,134.76,134.75,18.0380527]
[1750583527336,177.4,134.76,134.75,10.61690243]
[1750583527666,177.4,134.76,134.74,18.03838285]
[1750583527841,0.42461604,134.75,134.74,18.03838285]
[1750583529943,0.42461604,134.75,134.73,7.42225191]
[1750583530145,0.42461604,134.75,134.73,18.03915434]
[1750583531336,30.5,134.74,134.73,18.03915434]
[1750583532665,30.5,134.74,134.73,10.61690243]
[1750583532954,30.5,134.74,134.72,18.0395319]
[1750583533135,0.42461604,134.73,134.72,18.0395319]
[1750583533328,0.42461604,134.73,134.69,7.42445615]
[1750583533534,177.4,134.72,134.69,18.04135858]
[1750583533863,0.42461604,134.71,134.69,18.04135858]
[1750583534160,30.5,134.7,134.69,18.04135858]
[1750583534474,146.9,134.72,134.69,18.04135858]
[1750583534475,146.9,134.72,134.69,36.60249897]
[1750583534756,146.9,134.72,134.71,10.61690243]
[1750583536639,146.9,134.72,134.71,18.0402563]
[1750583540432,6.6,134.73,134.71,18.0402563]
[1750583540632,6.6,134.73,134.72,36.61690243]
[1750583541249,30.92461604,134.77,134.72,36.61690243]
[1750583541455,30.92461604,134.77,134.72,26.0]
[1750583541656,30.92461604,134.77,134.75,10.61690243]
[1750583543348,30.92461604,134.77,134.76,7.42059958]
[1750583544363,30.92461604,134.77,134.76,10.61690243]
[1750583544863,153.5,134.78,134.76,10.61690243]
[1750583544864,6.6,134.78,134.76,10.61690243]
[1750583545066,6.6,134.78,134.77,10.61690243]
[1750583545557,30.5,134.82,134.78,26.0]
[1750583545757,30.5,134.82,134.81,10.61690243]
[1750583545758,0.42461604,134.82,134.81,10.61690243]
[1750583546348,0.42461604,134.82,134.81,18.03474977]
[1750583546666,184.0,134.83,134.81,18.03474977]
[1750583546869,153.5,134.83,134.82,10.61690243]
[1750583549071,153.5,134.83,134.82,18.03419956]
[1750583551149,184.0,134.83,134.82,18.03419956]
[1750583552962,153.5,134.83,134.82,18.03419956]
[1750583554571,153.5,134.83,134.82,7.41729713]
[1750583554772,153.5,134.83,134.82,18.03419956]
[1750583558659,153.5,134.83,134.82,7.41729713]
[1750583558962,153.5,134.83,134.82,18.03419956]
[1750583559558,149.0,134.83,134.82,18.03419956]
[1750583565766,6.6,134.83,134.82,18.03419956]
[1750583566085,6.6,134.83,134.82,44.03419956]
[1750583570585,6.6,134.83,134.82,33.41729713]
[1750583570770,6.6,134.83,134.82,44.03419956]
[1750583575865,17.21690243,134.91,134.85,26.0]
[1750583576096,0.42461604,134.9,134.87,10.61690243]
[1750583576485,37.48461604,134.91,134.88,10.61690243]
[1750583576691,7.02461604,134.91,134.9,10.61690243]